bitfinex-derivatives/quotes_ETHF0:USTF0_20230903
["timestamp","ask_amount","ask_price","bid_price","bid_amount"]
[1693775098953,2.5454,1643.1,1643.0,0.0140577]
[1693775099452,5.41256352,1643.1,1643.0,0.0140577]
[1693775103155,10.89256352,1643.1,1643.0,0.0140577]
[1693775104550,8.0254,1643.1,1643.0,0.0140577]
[1693775104751,10.89256352,1643.1,1643.0,0.0140577]
[1693775105655,8.0254,1643.1,1643.0,0.0140577]
[1693775106755,10.89256352,1643.1,1643.0,0.0140577]
[1693775107846,13.37376352,1643.1,1643.0,0.0140577]
[1693775112460,10.5066,1643.1,1643.0,0.0140577]
[1693775113155,5.0266,1643.1,1643.0,0.0140577]
[1693775114864,5.0266,1643.1,1643.0,12.1895777]
[1693775116355,5.0266,1643.1,1643.0,17.6695777]
[1693775123368,4.11317502,1643.1,1643.0,17.6695777]
[1693775126368,6.98033854,1643.1,1643.0,12.1895777]
[1693775133075,12.46033854,1643.1,1643.0,12.1895777]
[1693775134276,12.46033854,1643.1,1643.0,13.76921826]
[1693775135276,12.46033854,1643.1,1643.0,16.81423127]
[1693775136276,12.46033854,1643.1,1643.0,17.60405156]
[1693775139880,12.46033854,1643.1,1643.0,19.19128914]
[1693775140373,12.46033854,1643.1,1643.0,16.82182829]
[1693775140876,18.54775854,1643.1,1643.0,10.73293528]
[1693775141280,18.54775854,1643.1,1643.0,9.1456977]
[1693775142779,15.50404854,1643.1,1643.0,9.1456977]
[1693775143475,12.46033854,1643.1,1643.0,9.1456977]
[1693775145284,15.50404854,1643.1,1643.0,9.1456977]
[1693775148381,12.46033854,1643.1,1643.0,9.1456977]
[1693775151178,15.50404854,1643.1,1643.0,9.1456977]
[1693775155089,18.54775854,1643.1,1643.0,9.1456977]
[1693775155484,0.0609,1642.9,1642.8,3.04425]
[1693775155691,8.40806352,1642.9,1642.8,12.17706]
[1693775155987,13.50686352,1642.9,1642.8,12.17706]
[1693775156483,13.50686352,1642.9,1642.8,12.19196804]
[1693775157885,10.5788,1642.9,1642.8,12.19196804]
[1693775158087,5.0988,1642.9,1642.8,12.19196804]
[1693775158388,2.5518,1642.9,1642.8,12.25256804]
[1693775170798,2.5518,1642.9,1642.8,17.73256804]
[1693775171106,2.6311,1643.2,1642.9,0.13945205]
[1693775171301,2.6311,1643.2,1643.0,17.6556]
[1693775171499,2.6311,1643.2,1643.1,0.07885205]
[1693775171696,2.6311,1643.2,1643.1,17.73369205]
[1693775172003,0.0609,1643.4,1643.1,17.73369205]
[1693775172198,2.692,1643.4,1643.1,17.73369205]
[1693775172404,2.6311,1643.4,1643.3,17.65336]
[1693775172603,2.6311,1643.6,1643.3,17.73221205]
[1693775172908,2.6311,1643.6,1643.5,17.65188]
[1693775173097,2.6311,1643.6,1643.5,17.73073205]
[1693775174102,5.1552,1643.6,1643.5,17.73073205]
[1693775182211,5.5409,1644.0,1643.5,17.73073205]
[1693775182415,2.5206,1643.9,1643.7,5.48]
[1693775182609,2.5206,1643.9,1643.8,12.24849205]
[1693775183111,2.5206,1643.9,1643.8,17.72849205]
[1693775185409,5.0372,1643.9,1643.8,17.72849205]
[1693775186215,10.94659352,1643.9,1643.8,12.24849205]
[1693775186411,7.90436352,1643.9,1643.8,12.16964]
[1693775186714,7.90436352,1643.9,1643.8,12.1844718]
[1693775187419,10.94659352,1643.9,1643.8,12.1844718]
[1693775188107,8.07943,1643.9,1643.8,12.1844718]
[1693775189015,10.94659352,1643.9,1643.8,12.1844718]
[1693775189414,10.94659352,1643.9,1643.8,9.1420618]
[1693775189907,11.12166,1643.9,1643.8,9.1420618]
[1693775190108,17.03105352,1643.9,1643.8,6.0996518]
[1693775190312,17.03105352,1643.9,1643.8,11.5796518]
[1693775193221,17.03105352,1643.9,1643.8,6.0996518]
[1693775194621,17.03105352,1643.9,1643.8,9.1420618]
[1693775194815,13.98882352,1643.9,1643.8,9.1420618]
[1693775195021,11.12166,1643.9,1643.8,9.1420618]
[1693775195321,13.98882352,1643.9,1643.8,9.1420618]
[1693775197622,17.03105352,1643.9,1643.8,6.0996518]
[1693775198625,17.03105352,1643.9,1643.8,9.1420618]
[1693775200729,17.03105352,1643.9,1643.8,6.0996518]
[1693775203228,17.03105352,1643.9,1643.8,3.0572418]
[1693775203430,25.55328352,1643.9,1643.8,0.0148318]
[1693775205833,25.55328352,1643.9,1643.4,11.5661]
[1693775206033,5.5408,1643.7,1643.4,11.5661]
[1693775206332,5.5408,1643.7,1643.4,14.60917]
[1693775206333,15.03828352,1643.6,1643.4,14.60917]
[1693775206534,17.60948352,1643.6,1643.5,0.01601381]
[1693775206833,19.87942,1643.6,1643.5,3.05898381]
[1693775207023,25.35942,1643.6,1643.5,3.05898381]
[1693775208933,27.82962,1643.6,1643.5,3.05898381]
[1693775209832,27.82962,1643.6,1643.5,0.01601381]
[1693775210935,27.82962,1643.6,1643.5,3.05898381]
[1693775211131,27.82962,1643.6,1643.5,0.01601381]
[1693775212436,27.82962,1643.6,1643.5,3.05898381]
[1693775213428,27.82962,1643.6,1643.5,0.01601381]
[1693775214936,27.82962,1643.6,1643.5,3.05898381]
[1693775215535,27.82962,1643.6,1643.5,0.01601381]
[1693775218034,27.82962,1643.6,1643.1,7.00926275]
[1693775218035,27.82962,1643.6,1643.1,8.52357]
[1693775218236,5.48,1643.4,1643.1,8.52357]
[1693775218435,17.31046,1643.3,1643.1,11.56718]
[1693775218633,22.41686,1643.3,1643.2,0.01479102]
[1693775218833,27.89686,1643.3,1643.2,0.01479102]
[1693775219136,27.89686,1643.3,1642.9,9.13209]
[1693775219333,5.48,1643.0,1642.9,3.04397]
[1693775219635,9.13224,1642.9,1642.8,6.14901]
[1693775219936,11.14916,1642.9,1642.8,9.19327]
[1693775220736,11.14916,1642.9,1642.8,9.13267]
[1693775221038,11.14916,1642.9,1642.8,9.19327]
[1693775221535,11.14916,1642.9,1642.8,9.13267]
[1693775222030,11.14916,1642.9,1642.8,9.19327]
[1693775222233,11.14916,1642.9,1642.8,9.13267]
[1693775222442,8.52342,1643.3,1643.2,0.0606]
[1693775222627,13.98768,1643.3,1643.2,6.14764]
[1693775222833,16.85484352,1643.3,1643.2,6.14764]
[1693775223027,19.89818352,1643.3,1643.2,6.14764]
[1693775223246,22.16812,1643.3,1643.2,6.14764]
[1693775223831,24.55412,1643.3,1643.2,6.14764]
[1693775225540,24.55412,1643.3,1643.2,6.16131238]
[1693775226239,27.59746,1643.3,1643.2,0.01367238]
[1693775229447,27.59746,1643.3,1643.2,0.07427238]
[1693775230243,28.09302357,1643.3,1643.2,0.07427238]
[1693775231449,28.09302357,1643.3,1643.2,0.01367238]
[1693775231649,5.48,1643.2,1643.0,6.14822]
[1693775231950,19.74823,1643.1,1643.0,6.14822]
[1693775232252,24.50863,1643.1,1643.0,6.14822]
[1693775232750,24.50863,1643.1,1643.0,6.16138177]
[1693775233053,24.50863,1643.1,1643.0,9.20527177]
[1693775233446,10.2404,1643.1,1643.0,12.24916177]
[1693775233646,13.28411,1643.1,1643.0,12.24916177]
[1693775234341,19.19498352,1643.1,1643.0,9.20527177]
[1693775234950,22.23869352,1643.1,1643.0,9.20527177]
[1693775235451,19.19498352,1643.1,1643.0,9.20527177]
[1693775236550,10.2404,1643.1,1643.0,12.18856177]
[1693775236853,10.2404,1643.1,1643.0,12.24916177]
[1693775238951,7.8619,1643.1,1643.0,12.24916177]
[1693775239154,2.3819,1643.1,1643.0,12.24916177]
[1693775239853,7.9237,1643.3,1643.2,0.0606]
[1693775240057,10.5228,1643.3,1643.2,12.31353205]
[1693775240348,13.38996352,1643.3,1643.2,12.31353205]
[1693775240552,13.38996352,1643.3,1643.2,12.32566742]
[1693775241049,10.5228,1643.3,1643.2,12.32566742]
[1693775242154,13.38996352,1643.3,1643.2,12.32566742]
[1693775242457,10.5228,1643.3,1643.2,12.32566742]
[1693775243756,13.38996352,1643.3,1643.2,12.32566742]
[1693775244257,10.5228,1643.3,1643.2,12.32566742]
[1693775245659,13.38996352,1643.3,1643.2,12.24681537]
[1693775245861,16.43330352,1643.3,1643.2,12.24681537]
[1693775246761,19.47664352,1643.3,1643.2,12.24681537]
[1693775247461,22.51998352,1643.3,1643.2,6.15977537]
[1693775248465,22.51998352,1643.3,1643.2,9.20329537]
[1693775248961,22.51998352,1643.3,1643.2,6.15977537]
[1693775249361,22.51998352,1643.3,1643.2,9.20329537]
[1693775249854,22.51998352,1643.3,1643.2,6.15977537]
[1693775250266,22.51998352,1643.3,1643.2,9.20329537]
[1693775252468,10.5228,1643.3,1643.2,12.24681537]
[1693775253262,13.38996352,1643.3,1643.2,12.24681537]
[1693775253665,16.43330352,1643.3,1643.2,12.24681537]
[1693775256873,19.47664352,1643.3,1643.2,12.24681537]
[1693775262479,16.60948,1643.3,1643.2,12.24681537]
[1693775262973,16.60948,1643.3,1643.2,6.09917537]
[1693775262974,22.51998352,1643.3,1643.2,6.09917537]
[1693775263182,25.56332352,1643.3,1643.2,0.01213537]
[1693775264085,31.94017166,1643.3,1643.2,0.01213537]
[1693775264976,7.74993648,1643.2,1643.1,3.04365]
[1693775265281,2.86716352,1643.1,1643.0,6.14815]
[1693775265484,22.41169352,1643.1,1643.0,9.19205]
[1693775265680,22.41169352,1643.1,1643.0,9.20484899]
[1693775265977,19.36798352,1643.1,1643.0,12.18814899]
[1693775266183,19.36798352,1643.1,1643.0,12.24874899]
[1693775267283,16.32427352,1643.1,1643.0,12.24874899]
[1693775267577,10.4134,1643.1,1643.0,12.24874899]
[1693775271589,22.41157352,1643.1,1643.0,12.24874899]
[1693775271781,22.41157352,1643.1,1643.0,9.14424899]
[1693775273591,22.41157352,1643.1,1643.0,12.18814899]
[1693775274590,22.41157352,1643.1,1643.0,12.24874899]
[1693775275093,10.4134,1643.1,1643.0,12.24874899]
[1693775277095,13.45704,1643.1,1643.0,12.24874899]
[1693775280598,16.32420352,1643.1,1643.0,12.24874899]
[1693775281099,13.45707,1643.1,1643.0,12.24874899]
[1693775282302,13.45704,1643.1,1643.0,12.24874899]
[1693775282496,10.4134,1643.1,1643.0,12.24874899]
[1693775282796,13.45706,1643.1,1643.0,12.24874899]
[1693775289310,16.32422352,1643.1,1643.0,12.24874899]
[1693775289606,19.36788352,1643.1,1643.0,12.24874899]
[1693775291406,16.50072,1643.1,1643.0,12.24874899]
[1693775293115,19.36788352,1643.1,1643.0,12.24874899]
[1693775295611,16.50072,1643.1,1643.0,12.24874899]
[1693775296418,10.4134,1643.1,1643.0,12.24874899]
[1693775301222,4.9334,1643.1,1643.0,12.24874899]
[1693775310224,4.9334,1643.1,1643.0,9.20484899]
[1693775310225,19.36788352,1643.1,1643.0,9.20484899]
[1693775310420,16.50072,1643.1,1643.0,12.24874899]
[1693775310829,10.4134,1643.1,1643.0,12.24874899]
[1693775313928,19.36790352,1643.1,1643.0,9.20484899]
[1693775314230,22.41157352,1643.1,1643.0,6.10034899]
[1693775314431,22.41157352,1643.1,1643.0,9.14419899]
[1693775321737,19.54441,1643.1,1643.0,9.14419899]
[1693775322034,22.41157352,1643.1,1643.0,9.14419899]
[1693775322739,19.54441,1643.1,1643.0,9.14419899]
[1693775323139,22.41157352,1643.1,1643.0,9.14419899]
[1693775323434,16.50074,1643.1,1643.0,12.18804899]
[1693775323831,4.9334,1643.1,1643.0,12.24864899]
[1693775332043,7.97706,1643.1,1643.0,12.24864899]
[1693775333544,10.84422352,1643.1,1643.0,12.24864899]
[1693775333748,7.97706,1643.1,1643.0,12.24864899]
[1693775335445,10.84422352,1643.1,1643.0,12.24864899]
[1693775335746,7.97706,1643.1,1643.0,12.24864899]
[1693775340248,4.9334,1643.1,1643.0,12.24864899]
[1693775340446,0.49194565,1643.3,1643.2,0.0606]
[1693775340640,21.05844118,1643.5,1643.4,0.0606]
[1693775340641,13.57542066,1643.5,1643.4,0.0606]
[1693775340844,2.4324,1643.6,1643.5,0.0606]
[1693775341042,19.65999066,1643.9,1643.8,0.0606]
[1693775341251,2.4324,1643.9,1643.8,12.23008]
[1693775341548,6.38843325,1644.0,1643.9,0.0606]
[1693775341747,2.5063,1644.0,1643.9,12.22936]
[1693775347457,2.5671,1644.0,1643.9,12.22936]
[1693775349057,5.0405,1644.0,1643.9,12.22936]
[1693775349261,4.9797,1644.0,1643.9,17.70936]
[1693775349664,2.5063,1644.0,1643.9,17.70936]
[1693775351561,2.5063,1644.0,1643.9,17.7236153]
[1693775351956,5.48,1644.4,1644.3,0.0606]
[1693775352154,6.15316,1644.5,1644.4,9.18438]
[1693775352155,2.6395,1644.5,1644.4,9.18438]
[1693775352353,2.6395,1644.5,1644.4,12.22564]
[1693775352553,2.6395,1644.5,1644.4,12.30449205]
[1693775353160,2.6395,1644.5,1644.4,17.78449205]
[1693775354262,2.5787,1644.5,1644.4,17.78449205]
[1693775355258,4.9946,1644.5,1644.4,17.78449205]
[1693775356258,4.08184932,1644.5,1644.4,17.78449205]
[1693775357568,2.4159,1644.5,1644.4,17.78449205]
[1693775359162,2.4767,1644.5,1644.4,14.74323205]
[1693775360165,2.4767,1644.5,1644.4,17.78449205]
[1693775360368,2.4767,1644.5,1644.4,14.74323205]
[1693775364373,2.4767,1644.5,1644.4,17.78449205]
[1693775365071,2.4767,1644.5,1644.4,14.74323205]
[1693775366573,2.4767,1644.5,1644.4,14.75744315]
[1693775370380,2.4767,1644.5,1644.4,17.79870315]
[1693775370881,2.4767,1644.5,1644.4,14.75744315]
[1693775373082,2.4767,1644.5,1644.4,17.79870315]
[1693775378481,2.4767,1644.5,1644.4,14.75744315]
[1693775379588,2.4767,1644.5,1644.4,17.79870315]
[1693775383384,2.4159,1644.5,1644.4,17.79870315]
[1693775384188,2.4159,1644.5,1644.4,19.37197636]
[1693775385093,2.4159,1644.5,1644.4,23.20126446]
[1693775385984,2.4767,1644.5,1644.4,23.20126446]
[1693775386287,2.4159,1644.5,1644.4,23.20126446]
[1693775386487,9.60811581,1644.8,1644.6,0.0606]
[1693775386685,9.60811581,1644.8,1644.7,9.12213]
[1693775386888,11.87805229,1644.8,1644.7,9.12213]
[1693775387393,8.83742229,1644.8,1644.7,9.18293]
[1693775387591,8.83742229,1644.8,1644.7,9.19856124]
[1693775388298,11.87807229,1644.8,1644.7,9.19856124]
[1693775389493,11.87807229,1644.8,1644.7,6.15785124]
[1693775389694,16.84227229,1644.8,1644.7,6.15785124]
[1693775390495,19.70943581,1644.8,1644.7,6.15785124]
[1693775393301,19.70943581,1644.8,1644.7,3.11714124]
[1693775393805,16.84227229,1644.8,1644.7,3.11714124]
[1693775395001,19.70943581,1644.8,1644.7,3.11714124]
[1693775397603,19.70943581,1644.8,1644.7,3.11713124]
[1693775399505,26.87345606,1644.8,1644.7,3.11713124]
[1693775401103,33.2594768,1644.8,1644.7,3.11713124]
[1693775401403,26.09545655,1644.8,1644.7,3.11713124]
[1693775402303,26.09545655,1644.8,1644.7,0.07643124]
[1693775403200,26.87345606,1644.8,1644.7,5.55643124]
[1693775408407,27.66945832,1644.8,1644.7,5.55643124]
[1693775410505,34.85308901,1644.8,1644.7,5.55643124]
[1693775410804,26.8930665,1644.8,1644.7,5.55643124]
[1693775416112,24.02590298,1644.8,1644.7,5.55643124]
[1693775416414,26.8930665,1644.8,1644.7,5.55643124]
[1693775432539,26.8930665,1644.8,1644.7,5.56087121]
[1693775433134,21.7559665,1644.8,1644.7,5.56087121]
[1693775433330,24.62313002,1644.8,1644.7,5.56087121]
[1693775436941,24.62313002,1644.8,1644.7,11.64233121]
[1693775437130,21.7559665,1644.8,1644.7,11.64233121]
[1693775437336,28.14102186,1644.8,1644.7,11.64233121]
[1693775437641,20.95695175,1644.8,1644.7,11.64233121]
[1693775437830,21.40555729,1644.8,1644.7,11.64233121]
[1693775438341,24.27272081,1644.8,1644.7,11.64233121]
[1693775438542,17.88810487,1644.8,1644.7,11.64233121]
[1693775438742,24.27241045,1644.8,1644.7,11.64233121]
[1693775438935,20.95664139,1644.8,1644.7,11.64233121]
[1693775439135,23.82380491,1644.8,1644.7,11.64233121]
[1693775439540,17.43949933,1644.8,1644.7,11.64233121]
[1693775439741,23.8235684,1644.8,1644.7,11.64233121]
[1693775440241,17.43949933,1644.8,1644.7,11.64233121]
[1693775440643,23.82339275,1644.8,1644.7,11.64233121]
[1693775440940,17.43949933,1644.8,1644.7,11.64233121]
[1693775441141,23.82338516,1644.8,1644.7,11.64233121]
[1693775441444,17.43949933,1644.8,1644.7,11.64233121]
[1693775441643,23.82325075,1644.8,1644.7,11.64233121]
[1693775442641,20.95608723,1644.8,1644.7,11.64233121]
[1693775444941,20.95608723,1644.8,1644.7,14.68306121]
[1693775445645,20.46982142,1644.8,1644.7,14.68306121]
[1693775447640,14.08607,1644.8,1644.7,14.68306121]
[1693775449346,20.46982142,1644.8,1644.7,14.68306121]
[1693775450845,14.08607,1644.8,1644.7,14.68306121]
[1693775452149,20.46982142,1644.8,1644.7,14.68306121]
[1693775452547,11.04542,1644.8,1644.7,14.68306121]
[1693775455655,17.42917142,1644.8,1644.7,14.68306121]
[1693775455955,11.04542,1644.8,1644.7,14.68306121]
[1693775458056,13.91258352,1644.8,1644.7,14.68306121]
[1693775458257,11.04542,1644.8,1644.7,14.68306121]
[1693775464062,13.91258352,1644.8,1644.7,14.68306121]
[1693775464557,11.04542,1644.8,1644.7,14.68306121]
[1693775483769,11.04542,1644.8,1644.7,17.72379121]
[1693775484067,6.57798459,1645.0,1644.8,0.0608]
[1693775484272,9.00678459,1645.0,1644.9,14.67984205]
[1693775484566,9.00678459,1645.0,1644.9,14.69993388]
[1693775487575,11.42518459,1645.0,1644.9,14.69993388]
[1693775489580,7.88736,1645.0,1644.9,14.76073388]
[1693775489781,4.8472,1645.0,1644.9,17.80106388]
[1693775489979,2.4184,1645.0,1644.9,17.80106388]
[1693775490275,2.3773,1645.1,1645.0,0.0608]
[1693775490575,2.3773,1645.1,1645.0,17.78005205]
[1693775490773,4.7668,1645.1,1645.0,17.80012896]
[1693775492580,9.41137075,1645.4,1645.2,0.0608]
[1693775492878,5.0744,1645.3,1645.2,3.10044]
[1693775493176,5.0744,1645.3,1645.2,17.77848205]
[1693775499174,8.11398,1645.3,1645.2,17.77848205]
[1693775501585,8.11398,1645.3,1645.2,17.79977209]
[1693775507596,17.06030352,1645.3,1645.2,3.06093004]
[1693775507796,17.06030352,1645.3,1645.2,14.62045004]
[1693775508002,11.15356,1645.3,1645.2,14.68125004]
[1693775510399,14.02072352,1645.3,1645.2,14.68125004]
[1693775511405,11.15356,1645.3,1645.2,14.68125004]
[1693775511799,14.02072352,1645.3,1645.2,14.68125004]
[1693775512202,11.15356,1645.3,1645.2,14.68125004]
[1693775512803,17.06030352,1645.3,1645.2,14.68125004]
[1693775513505,14.19314,1645.3,1645.2,14.68125004]
[1693775514900,17.06030352,1645.3,1645.2,14.68125004]
[1693775515107,14.02072352,1645.3,1645.2,14.68125004]
[1693775515308,11.15356,1645.3,1645.2,14.68125004]
[1693775515704,14.02072352,1645.3,1645.2,14.68125004]
[1693775516308,11.15356,1645.3,1645.2,14.68125004]
[1693775517702,14.02072352,1645.3,1645.2,14.68125004]
[1693775518102,11.15356,1645.3,1645.2,14.68125004]
[1693775520208,11.15356,1645.3,1645.2,17.72101004]
[1693775520506,5.0744,1645.3,1645.2,17.72101004]
[1693775522510,3.03884,1645.7,1645.6,0.0608]
[1693775522808,11.12658,1645.7,1645.6,14.65786]
[1693775523303,14.1655,1645.7,1645.6,14.65786]
[1693775523802,14.1655,1645.7,1645.6,14.67826389]
[1693775524913,17.03266352,1645.7,1645.6,14.67826389]
[1693775525312,14.1655,1645.7,1645.6,14.67826389]
[1693775526412,11.12658,1645.7,1645.6,14.67826389]
[1693775526613,5.0489,1645.7,1645.6,23.19728389]
[1693775530014,0.01,1645.8,1645.7,0.0608]
[1693775530214,0.01,1645.8,1645.7,17.77501205]
[1693775531614,0.01,1645.8,1645.7,17.7953967]
[1693775536422,6.0873,1645.8,1645.7,14.7565567]
[1693775537514,0.01,1645.8,1645.7,14.7565567]
[1693775544924,0.01,1645.8,1645.7,15.24238094]
[1693775546418,0.01,1645.8,1645.7,25.28975626]
[1693775548217,5.2411,1645.9,1645.8,0.0608]
[1693775548420,9.60591306,1646.3,1646.0,0.0608]
[1693775548614,2.4174,1646.1,1646.0,3.17783205]
[1693775548819,2.4174,1646.1,1646.0,17.77272205]
[1693775549017,2.4174,1646.1,1646.0,24.11454149]
[1693775553427,2.4174,1646.1,1646.0,21.07626149]
[1693775553619,2.4174,1646.1,1646.0,24.11454149]
[1693775553823,2.5076,1646.2,1646.1,17.69312]
[1693775554326,3.0372,1646.6,1646.4,0.0608]
[1693775554527,9.11172,1646.6,1646.5,5.55885205]
[1693775554723,11.97888352,1646.6,1646.5,8.59619205]
[1693775554922,9.11172,1646.6,1646.5,5.55885205]
[1693775555319,9.11172,1646.6,1646.5,5.48]
[1693775555725,11.62612,1646.6,1646.5,5.48]
[1693775556828,14.19082,1646.6,1646.5,5.48]
[1693775559034,17.05798352,1646.6,1646.5,5.48]
[1693775559333,14.19082,1646.6,1646.5,5.48]
[1693775559829,17.05798352,1646.6,1646.5,5.48]
[1693775560031,7.94626352,1646.6,1646.5,5.48]
[1693775560834,5.0791,1646.6,1646.5,5.48]
[1693775561635,5.0791,1646.6,1646.5,5.50154839]
[1693775565137,4.16734565,1646.6,1646.5,5.50154839]
[1693775568540,4.16734565,1646.6,1646.5,7.0807143]
[1693775569239,7.03450917,1646.6,1646.5,7.0807143]
[1693775569442,4.16734565,1646.6,1646.5,7.0807143]
[1693775570839,4.16734565,1646.6,1646.5,7.1414143]
[1693775573442,4.16734565,1646.6,1646.5,5.56224839]
[1693775580540,16.73974565,1646.6,1646.1,2.36467801]
[1693775580843,16.73974565,1646.6,1645.8,4.97577801]
[1693775580844,5.48,1646.2,1645.8,4.97577801]
[1693775581050,5.48,1645.9,1645.7,2.36659969]
[1693775581239,2.86716352,1645.8,1645.7,2.36659969]
[1693775581438,2.86716352,1645.8,1645.5,10.45769969]
[1693775581638,2.26993648,1645.7,1645.5,10.45769969]
[1693775581843,2.86716352,1645.6,1645.5,8.0911]
[1693775582744,2.86716352,1645.6,1645.4,5.48]
[1693775582948,2.26993648,1645.5,1645.4,5.48]
[1693775583253,2.26993648,1645.5,1645.3,5.48]
[1693775583550,2.86716352,1645.4,1645.3,5.48]
[1693775583847,2.86716352,1645.4,1645.3,8.52059455]
[1693775584247,2.86716352,1645.4,1645.3,5.48]
[1693775585642,2.86716352,1645.4,1645.3,5.5406]
[1693775587946,2.86716352,1645.4,1645.3,0.0606]
[1693775588146,8.34716352,1645.4,1645.2,2.6551]
[1693775588347,7.74993648,1645.3,1645.2,2.5945]
[1693775588848,7.74993648,1645.3,1645.2,2.60737315]
[1693775589955,19.90825648,1645.3,1645.2,2.60737315]
[1693775592648,22.90825648,1645.3,1645.2,0.01287459]
[1693775592846,12.1598,1645.1,1644.8,0.0606]
[1693775593044,14.42973648,1645.1,1644.9,5.48]
[1693775593251,2.86716352,1645.0,1644.8,5.5406]
[1693775593444,12.16128,1644.9,1644.7,5.5406]
[1693775593650,5.1371,1644.8,1644.7,5.5406]
[1693775593850,9.87084682,1644.8,1644.7,5.5406]
[1693775594351,12.73801034,1644.8,1644.7,5.5406]
[1693775595146,10.01163609,1644.8,1644.7,5.5406]
[1693775595747,15.91936961,1644.8,1644.7,5.5406]
[1693775597444,12.87879961,1644.8,1644.7,5.5406]
[1693775598056,12.87879961,1644.8,1644.7,0.0606]
[1693775600651,12.87879961,1644.8,1644.7,0.0706531]
[1693775603459,12.87879961,1644.8,1644.7,5.5506531]
[1693775608964,10.01163609,1644.8,1644.7,5.5506531]
[1693775609159,8.52048,1644.9,1644.8,0.0606]
[1693775609459,9.1216,1644.9,1644.8,0.0606]
[1693775609665,9.1216,1644.9,1644.8,0.07064533]
[1693775609666,11.98876352,1644.9,1644.8,0.07064533]
[1693775609964,15.02932352,1644.9,1644.8,0.07064533]
[1693775610153,15.02932352,1644.9,1644.8,0.01004533]
[1693775610359,20.50932352,1644.9,1644.8,0.01004533]
[1693775614761,20.50932352,1644.9,1644.6,2.608]
[1693775614964,20.6838,1644.7,1644.5,0.0606]
[1693775615166,20.51092352,1644.6,1644.5,0.0606]
[1693775615468,22.78086,1644.6,1644.5,0.0606]
[1693775615663,22.78086,1644.6,1644.5,0.0709854]
[1693775615863,22.84166,1644.6,1644.5,0.0103854]
[1693775616062,10.6779,1644.6,1644.5,0.0103854]
[1693775618462,6.7795362,1644.6,1644.5,0.0103854]
[1693775619769,6.7795362,1644.6,1644.5,0.0710854]
[1693775620570,6.7795362,1644.6,1644.5,0.0103854]
[1693775620767,6.7795362,1644.6,1644.5,5.4e-06]
[1693775620972,0.0608,1644.5,1644.4,2.5569]
[1693775621172,5.5408,1644.5,1644.4,2.5569]
[1693775621673,5.5408,1644.5,1644.4,2.56689373]
[1693775622177,5.5408,1644.5,1644.1,0.0607]
[1693775622371,5.48,1644.2,1644.1,2.5847]
[1693775622574,8.34716352,1644.2,1644.1,2.5847]
[1693775622874,10.6171,1644.2,1644.1,2.59430448]
[1693775623270,5.1371,1644.2,1644.1,2.59430448]
[1693775624074,5.1371,1644.2,1644.1,7.99321236]
[1693775625078,5.1371,1644.2,1644.1,5.63707646]
[1693775625370,4.22426341,1644.2,1644.1,7.99321236]
[1693775627074,15.18426341,1644.2,1644.1,2.59430448]
[1693775628179,9.70426341,1644.2,1644.1,2.59430448]
[1693775630581,9.70426341,1644.2,1644.1,2.53360448]
[1693775631581,25.18426341,1644.2,1644.1,4.48e-06]
[1693775632679,25.18426341,1644.2,1643.8,2.4168359]
[1693775632880,5.48,1643.9,1643.8,2.4168359]
[1693775633180,10.6171,1643.9,1643.8,2.4168359]
[1693775633681,10.6171,1643.9,1643.8,2.42537729]
[1693775633876,9.09548633,1643.9,1643.8,5.46862069]
[1693775634482,9.09548633,1643.9,1643.8,7.16683592]
[1693775634483,6.9652311,1643.9,1643.8,7.16683592]
[1693775634982,6.9652311,1643.9,1643.8,6.25399932]
[1693775635181,6.9652311,1643.9,1643.8,5.42166663]
[1693775635490,1.8281311,1643.9,1643.8,0.92137799]
[1693775635673,4.69529462,1643.9,1643.8,0.98207799]
[1693775636284,4.69529462,1643.9,1643.8,0.06924139]
[1693775637188,4.69529462,1643.9,1643.8,0.98207799]
[1693775637373,4.69529462,1643.9,1643.8,0.06924139]
[1693775637578,5.48,1643.9,1643.8,0.06924139]
[1693775637774,5.48,1643.9,1643.8,0.98207799]
[1693775638982,8.34716352,1643.9,1643.8,0.98207799]
[1693775639982,8.34716352,1643.9,1643.8,4.02542975]
[1693775640982,5.48,1643.9,1643.8,4.02542975]
[1693775641586,8.34716352,1643.9,1643.8,4.02542975]
[1693775641786,8.34716352,1643.9,1643.8,0.98207799]
[1693775642292,8.34716352,1643.9,1643.8,0.06924139]
[1693775646085,20.51612352,1643.9,1643.8,0.06924139]
[1693775647090,20.51612352,1643.9,1643.8,0.98207799]
[1693775647292,20.51612352,1643.9,1643.8,0.06924139]
[1693775649195,20.99292858,1643.9,1643.8,0.06924139]
[1693775656104,20.99292858,1643.9,1643.8,3.11258251]
[1693775656901,20.99292858,1643.9,1643.8,5.48246435]
[1693775657396,18.12576506,1643.9,1643.8,6.39530095]
[1693775657601,20.99292858,1643.9,1643.8,6.39530095]
[1693775658003,20.99292858,1643.9,1643.8,5.48246435]
[1693775658304,20.99292858,1643.9,1643.8,6.39530095]
[1693775658501,20.99292858,1643.9,1643.8,5.48246435]
[1693775660106,20.99292858,1643.9,1643.8,8.52488435]
[1693775660902,17.95068858,1643.9,1643.8,9.43772095]
[1693775661102,17.95068858,1643.9,1643.8,6.15500251]
[1693775661302,17.95068858,1643.9,1643.8,8.53079615]
[1693775662308,17.95068858,1643.9,1643.8,9.44363275]
[1693775662508,17.95068858,1643.9,1643.8,8.53079615]
[1693775662709,14.08352506,1643.9,1643.8,10.80073263]
[1693775662908,16.95068858,1643.9,1643.8,10.80073263]
[1693775663108,11.04128506,1643.9,1643.8,12.48605275]
[1693775663309,0.47680506,1643.9,1643.8,18.56413012]
[1693775663512,11.62511,1644.0,1643.9,0.0607]
[1693775663808,14.66731,1644.0,1643.9,11.56511746]
[1693775664111,14.66731,1644.0,1643.9,9.18850112]
[1693775664612,14.66731,1644.0,1643.9,9.1962832]
[1693775665103,14.66731,1644.0,1643.9,9.19622196]
[1693775665300,17.53447352,1644.0,1643.9,9.196224]
[1693775665611,17.53447352,1644.0,1643.9,0.06848208]
[1693775665612,20.57667352,1644.0,1643.9,0.06848208]
[1693775666110,20.57667352,1644.0,1643.9,3.1117607]
[1693775666607,3.04175,1644.2,1644.1,0.0607]
[1693775666809,9.12524,1644.2,1644.1,6.14444]
[1693775667111,11.99240352,1644.2,1644.1,6.14444]
[1693775667312,9.12524,1644.2,1644.1,7.0572766]
[1693775667514,17.47240352,1644.2,1644.1,7.0572766]
[1693775667712,14.60524,1644.2,1644.1,7.06504151]
[1693775668010,14.60524,1644.2,1644.1,4.02319151]
[1693775668211,13.60524,1644.2,1644.1,4.02319151]